bitfinex/quotes_ETHUSD_20240608
["timestamp","ask_amount","ask_price","bid_price","bid_amount"]
[1717834420815,2.69789,3706.6,3706.5,0.04232254]
[1717834421117,2.69789,3706.6,3706.4,0.3464506]
[1717834421304,2.69789,3706.6,3706.5,0.04232254]
[1717834421506,2.69789,3706.6,3706.4,0.3464506]
[1717834421705,2.69789,3706.6,3706.5,0.04232254]
[1717834421900,2.69789,3706.6,3706.4,0.3464506]
[1717834422306,2.69789,3706.6,3706.5,0.04232254]
[1717834422506,2.69789,3706.6,3706.4,0.3464506]
[1717834422721,2.69789,3706.6,3706.5,0.04232254]
[1717834422921,2.69789,3706.6,3706.4,0.3464506]
[1717834423127,2.69789,3706.6,3706.5,0.04232254]
[1717834423336,2.69789,3706.6,3706.4,0.3464506]
[1717834423645,2.69789,3706.6,3706.5,0.04232254]
[1717834423938,2.69789,3706.6,3706.4,0.3464506]
[1717834424137,2.69789,3706.6,3706.5,0.04232254]
[1717834424434,2.69789,3706.6,3706.4,0.3464506]
[1717834424636,2.69789,3706.6,3706.5,0.0423292]
[1717834425013,2.69789,3706.6,3706.4,0.3464506]
[1717834425215,2.69789,3706.6,3706.5,0.0423292]
[1717834425625,2.69789,3706.6,3706.4,0.3464506]
[1717834425919,2.69789,3706.6,3706.5,0.0423292]
[1717834426092,2.69789,3706.6,3706.4,0.3464506]
[1717834426296,2.69789,3706.6,3706.5,0.0423292]
[1717834426523,2.69789,3706.6,3706.4,0.3464506]
[1717834426736,2.69789,3706.6,3706.5,0.0423292]
[1717834427038,2.69789,3706.6,3706.4,0.3464506]
[1717834427220,2.69789,3706.6,3706.5,0.0423292]
[1717834427629,2.69789,3706.6,3706.4,0.3464506]
[1717834427825,2.69789,3706.6,3706.5,0.0423292]
[1717834428218,2.69789,3706.6,3706.4,0.3464506]
[1717834428423,2.69789,3706.6,3706.5,0.0423292]
[1717834428727,2.69789,3706.6,3706.1,0.3464506]
[1717834429051,0.06745322,3706.5,3706.0,2.7113506]
[1717834429213,2.69815,3706.3,3706.0,0.3464506]
[1717834429400,2.69815,3706.3,3705.8,0.3464506]
[1717834432420,2.69815,3706.3,3705.9,0.0424162]
[1717834433210,3.07235,3706.3,3705.9,0.0424162]
[1717834433615,2.69825,3706.1,3705.9,0.0424162]
[1717834436541,3.41525,3706.1,3705.9,0.0424162]
[1717834436743,2.69863,3705.6,3705.3,2.3683]
[1717834437646,2.69863,3705.6,3705.2,0.3464506]
[1717834438128,2.69863,3705.6,3705.0,2.3683]
[1717834439248,2.69863,3705.6,3705.2,0.3464506]
[1717834439908,3.077613,3705.6,3705.0,2.7147506]
[1717834440341,3.077613,3705.6,3705.0,2.3683]
[1717834441013,3.077613,3705.6,3705.1,0.3464506]
[1717834441213,2.69863,3705.6,3705.4,0.717]
[1717834441539,2.69863,3705.6,3705.4,3.0151]
[1717834443276,2.70628,3706.1,3705.8,2.2981]
[1717834443574,2.69828,3706.1,3705.8,2.2981]
[1717834447561,2.69828,3706.1,3705.9,0.04211223]
[1717834448615,2.69828,3706.1,3705.7,0.3464506]
[1717834448832,2.69828,3706.1,3706.0,0.0420654]
[1717834449036,2.69828,3706.1,3705.7,0.3464506]
[1717834449212,2.69828,3706.1,3706.0,0.0420654]
[1717834449726,2.69828,3706.1,3705.7,0.3464506]
[1717834450044,2.69828,3706.1,3706.0,0.04184458]
[1717834450506,2.69828,3706.1,3705.7,0.3464506]
[1717834450712,2.69828,3706.1,3705.8,0.04184458]
[1717834450914,2.69828,3706.1,3705.7,0.3464506]
[1717834451164,2.69828,3706.1,3705.8,0.04184458]
[1717834451314,2.69828,3706.1,3705.7,0.3464506]
[1717834451524,2.69828,3706.1,3705.8,0.04184458]
[1717834451823,2.69828,3706.1,3705.7,0.3464506]
[1717834452011,2.69828,3706.1,3705.9,0.04184458]
[1717834452216,2.69828,3706.1,3705.7,0.3464506]
[1717834452456,2.69828,3706.1,3706.0,0.04184458]
[1717834452760,2.69828,3706.1,3706.0,0.0419851]
[1717834452958,2.69828,3706.1,3705.7,0.3464506]
[1717834453160,2.69828,3706.1,3706.0,0.0419851]
[1717834453350,2.69828,3706.1,3705.7,0.3464506]
[1717834453679,2.69828,3706.1,3706.0,0.0419851]
[1717834453821,2.69828,3706.1,3705.7,0.3464506]
[1717834454022,2.69828,3706.1,3706.0,0.0419851]
[1717834454223,2.69828,3706.1,3705.7,0.3464506]
[1717834454426,2.69828,3706.1,3706.0,0.0419851]
[1717834454661,2.69828,3706.1,3705.7,0.3464506]
[1717834455158,2.69828,3706.1,3705.8,0.0419851]
[1717834455474,2.69828,3706.1,3705.7,0.3464506]
[1717834455684,2.69828,3706.1,3705.9,0.0419851]
[1717834455979,2.69828,3706.1,3706.0,0.0419851]
[1717834456180,2.69828,3706.1,3705.7,0.3464506]
[1717834456467,2.69828,3706.1,3706.0,0.0419851]
[1717834456761,2.69828,3706.1,3705.7,0.3464506]
[1717834456959,2.69828,3706.1,3706.0,0.0419851]
[1717834457144,2.69828,3706.1,3705.7,0.3464506]
[1717834457449,2.69828,3706.1,3706.0,0.0419851]
[1717834457640,2.69828,3706.1,3705.7,0.3464506]
[1717834457835,2.69828,3706.1,3706.0,0.0419851]
[1717834458039,2.69828,3706.1,3705.7,0.3464506]
[1717834458341,2.69828,3706.1,3705.8,0.0419851]
[1717834458542,2.69828,3706.1,3705.7,0.3464506]
[1717834458762,2.69828,3706.1,3705.9,0.0419851]
[1717834458952,2.69828,3706.1,3705.7,0.3464506]
[1717834459162,2.69828,3706.1,3706.0,0.0419851]
[1717834459339,2.69828,3706.1,3705.7,0.3464506]
[1717834459541,2.69828,3706.1,3706.0,0.0419851]
[1717834459736,2.69828,3706.1,3705.7,0.3464506]
[1717834459956,2.69828,3706.1,3706.0,0.0419851]
[1717834460266,2.69828,3706.1,3705.7,0.3464506]
[1717834460431,2.69828,3706.1,3706.0,0.0419851]
[1717834460972,2.69828,3706.1,3705.7,0.3464506]
[1717834461289,2.69828,3706.1,3706.0,0.0419851]
[1717834461789,2.69828,3706.1,3705.7,0.3464506]
[1717834461972,2.69828,3706.1,3706.0,0.0419851]
[1717834462280,2.69828,3706.1,3705.7,0.3464506]
[1717834462583,2.69828,3706.1,3705.8,0.0419851]
[1717834462744,2.69828,3706.1,3705.7,0.3464506]
[1717834463081,2.69828,3706.1,3705.9,0.04207206]
[1717834463389,2.69828,3706.1,3705.7,0.3464506]
[1717834463390,2.69828,3706.1,3706.0,0.04207206]
[1717834463539,2.69828,3706.1,3705.7,0.3464506]
[1717834463739,2.69828,3706.1,3706.0,0.04207206]
[1717834463940,2.69828,3706.1,3705.7,0.3464506]
[1717834464162,2.69828,3706.1,3706.0,0.04207206]
[1717834464369,2.69828,3706.1,3705.7,0.3464506]
[1717834464574,2.69828,3706.1,3706.0,0.04207206]
[1717834464748,2.69828,3706.1,3705.7,0.3464506]
[1717834464950,2.69828,3706.1,3706.0,0.04207206]
[1717834465151,2.69828,3706.1,3705.7,0.3464506]
[1717834465350,2.69828,3706.1,3706.0,0.04207206]
[1717834465553,2.69828,3706.1,3705.7,0.3464506]
[1717834465754,2.69828,3706.1,3706.0,0.04207206]
[1717834466059,2.69828,3706.1,3705.7,0.3464506]
[1717834466239,2.69828,3706.1,3706.0,0.04207206]
[1717834466438,2.69828,3706.1,3705.7,0.3464506]
[1717834466635,2.69828,3706.1,3706.0,0.04207206]
[1717834466862,2.69828,3706.1,3705.7,0.3464506]
[1717834467065,2.69828,3706.1,3706.0,0.04207206]
[1717834467277,2.69828,3706.1,3705.7,0.3464506]
[1717834467498,2.69828,3706.1,3706.0,0.04207206]
[1717834467944,2.69828,3706.1,3705.7,0.3464506]
[1717834468272,2.69828,3706.1,3706.0,0.04207206]
[1717834468479,2.69828,3706.1,3705.7,0.3464506]
[1717834468682,2.69828,3706.1,3706.0,0.04207206]
[1717834469175,2.69828,3706.1,3705.7,0.3464506]
[1717834469483,2.69828,3706.1,3706.0,0.04207206]
[1717834469672,2.69828,3706.1,3705.7,0.3464506]
[1717834469881,2.69828,3706.1,3706.0,0.04207206]
[1717834470035,2.69828,3706.1,3705.7,0.3464506]
[1717834470239,2.69828,3706.1,3706.0,0.04207206]
[1717834470477,2.69828,3706.1,3705.7,0.3464506]
[1717834470677,2.69828,3706.1,3706.0,0.04207206]
[1717834470841,2.69828,3706.1,3705.7,0.3464506]
[1717834471042,2.69828,3706.1,3706.0,0.04207206]
[1717834471242,2.69828,3706.1,3705.7,0.3464506]
[1717834471443,2.69828,3706.1,3706.0,0.04207206]
[1717834471656,2.69828,3706.1,3705.7,0.3464506]
[1717834471881,2.69828,3706.1,3706.0,0.04207206]
[1717834472379,2.69828,3706.1,3705.7,0.3464506]
[1717834472580,2.69828,3706.1,3706.0,0.04207206]
[1717834472879,2.69828,3706.1,3705.7,0.3464506]
[1717834473342,2.69828,3706.1,3705.8,0.04203863]
[1717834473548,2.69828,3706.1,3705.7,0.3464506]
[1717834473885,2.69828,3706.1,3705.9,0.04203863]
[1717834474048,2.69828,3706.1,3705.7,0.3464506]
[1717834474245,2.69828,3706.1,3706.0,0.04203863]
[1717834474592,2.70596,3706.5,3706.1,0.3464506]
[1717834474885,2.69796,3706.5,3706.2,2.279]
[1717834475294,2.69796,3706.5,3706.3,0.04203863]
[1717834475648,2.69796,3706.5,3706.1,0.3464506]
[1717834475847,2.69796,3706.5,3706.4,0.04203863]
[1717834476045,2.69796,3706.5,3706.1,0.3464506]
[1717834476258,2.69796,3706.5,3706.4,0.04203863]
[1717834476442,2.69796,3706.5,3706.1,0.3464506]
[1717834476646,2.69796,3706.5,3706.4,0.04203863]
[1717834476847,2.69796,3706.5,3706.1,0.3464506]
[1717834477048,2.69796,3706.5,3706.4,0.04203863]
[1717834477285,2.69796,3706.5,3706.0,2.279]
[1717834477484,3.040256,3706.5,3706.4,0.04203863]
[1717834477664,3.040256,3706.5,3705.9,0.3464506]
[1717834477983,2.6050394,3706.5,3706.0,0.04203863]
[1717834478169,2.69833,3706.0,3705.7,0.3464506]
[1717834480208,2.69853,3705.8,3705.3,0.3464506]
[1717834486180,2.69853,3705.8,3705.7,0.3464506]
[1717834490436,2.69853,3705.8,3705.5,2.7549506]
[1717834490773,2.69853,3705.8,3705.5,0.3464506]
[1717834492722,2.69853,3705.8,3705.6,0.03948492]
[1717834497860,0.06746427,3705.7,3705.6,0.03948492]
[1717834498076,2.69853,3705.8,3705.6,0.03948492]
[1717834503547,2.69853,3705.8,3705.2,0.3464506]
[1717834503891,2.69853,3705.8,3705.3,0.03957192]
[1717834504248,2.69853,3705.8,3705.2,0.3464506]
[1717834504791,2.69853,3705.8,3705.3,0.03957192]
[1717834504949,2.69853,3705.8,3705.2,0.3464506]
[1717834505151,2.69853,3705.8,3705.3,0.03957192]
[1717834505351,2.69853,3705.8,3705.2,0.3464506]
[1717834505583,2.69874,3705.5,3705.3,0.03957192]
[1717834505852,2.92682873,3705.5,3705.2,0.3464506]
[1717834506078,2.92682873,3705.5,3705.4,0.03957192]
[1717834506265,2.92682873,3705.5,3705.2,0.3464506]
[1717834506490,2.92682873,3705.5,3705.4,0.03957192]
[1717834506703,2.92682873,3705.5,3705.2,0.3464506]
[1717834507005,2.69895,3705.2,3704.9,2.8085506]
[1717834507211,2.69895,3705.2,3704.7,0.3464506]
[1717834507553,2.69895,3705.2,3704.8,0.03957192]
[1717834507850,2.69895,3705.2,3704.7,0.3464506]
[1717834508052,2.69895,3705.2,3704.8,0.03957192]
[1717834508251,2.69895,3705.2,3704.7,0.3464506]
[1717834508503,2.69895,3705.2,3704.9,0.03957192]
[1717834508718,2.69895,3705.2,3704.7,0.3464506]
[1717834509314,2.69895,3705.2,3704.8,0.03957192]
[1717834509596,2.69895,3705.2,3704.6,2.4621]
[1717834509805,2.69895,3705.2,3704.9,0.03957192]
[1717834509965,2.69895,3705.2,3704.7,0.3464506]
[1717834510160,2.69895,3705.2,3705.0,0.03957192]
[1717834510365,3.41595,3705.2,3704.7,0.3464506]
[1717834510561,3.41595,3705.2,3705.1,0.03957192]
[1717834510767,2.69919,3704.9,3704.5,0.3464506]
[1717834513367,0.06748152,3704.8,3704.5,0.3464506]
[1717834513567,2.69919,3704.9,3704.5,0.3464506]
[1717834515382,2.69942,3704.5,3704.2,0.3464506]
[1717834515892,2.69942,3704.5,3704.0,2.8085506]
[1717834516189,2.69942,3704.5,3704.0,0.3464506]
[1717834516778,2.69973,3704.1,3703.4,0.3464506]
[1717834517012,3.41673,3704.1,3703.4,0.3464506]
[1717834518778,3.79093,3704.1,3703.4,0.3464506]
[1717834519683,3.79093,3704.1,3702.9,0.3464506]
[1717834519684,1.39285466,3704.0,3702.9,0.3464506]
[1717834519835,0.717,3703.7,3702.9,0.3464506]
[1717834520042,0.717,3703.9,3703.0,0.04137957]
[1717834520253,0.717,3703.9,3702.9,0.3464506]
[1717834520254,1.39285466,3703.8,3702.9,0.3464506]
[1717834520863,2.70024,3703.4,3702.9,0.3464506]
[1717834521876,2.70024,3703.4,3703.2,0.3464506]
[1717834522383,2.69991,3703.9,3703.3,0.04001766]
[1717834522530,2.69991,3703.9,3703.2,2.7124506]
[1717834522929,2.69991,3703.9,3703.3,0.04001766]
[1717834528987,0.717,3703.6,3703.3,0.04001766]
[1717834529285,0.95068878,3703.6,3702.9,2.366]
[1717834529481,0.95068878,3703.6,3703.4,0.04098211]
[1717834529682,0.95068878,3703.6,3702.9,2.366]
[1717834529919,3.65075878,3703.6,3703.5,0.04098211]
[1717834530129,4.02258537,3703.6,3702.9,2.366]
[1717834530444,3.65075878,3703.6,3702.9,2.366]
[1717834530724,3.65075878,3703.6,3703.0,0.04102901]
[1717834531919,3.65075878,3703.6,3703.0,0.38747961]
[1717834532126,2.70025,3703.4,3703.0,0.04102901]
[1717834532421,2.70025,3703.4,3702.8,0.3464506]
[1717834533237,2.70025,3703.4,3702.9,0.04111612]
[1717834537721,2.7005,3703.1,3702.9,0.04111612]
[1717834539356,2.7005,3703.1,3702.6,0.3464506]
[1717834539954,2.7005,3703.1,3702.7,0.04133052]
[1717834540475,2.70058,3702.9,3702.7,0.04133052]
[1717834543972,2.70058,3702.9,3702.8,0.3464506]
[1717834544332,2.70058,3702.9,3702.8,0.38778782]
[1717834548349,2.70058,3702.9,3702.8,2.80108782]
[1717834548550,2.70058,3702.9,3702.8,3.51808782]
[1717834554636,2.70031,3703.3,3702.8,3.51808782]
[1717834554868,2.70031,3703.3,3702.8,3.4767506]
[1717834555071,2.70031,3703.3,3702.9,0.04126351]
[1717834556206,0.3742,3703.2,3702.9,0.04126351]
[1717834556813,2.70031,3703.3,3702.9,0.04126351]
[1717834558424,3.28423724,3703.3,3702.9,0.04126351]
[1717834560129,2.70044,3703.1,3702.9,0.04126351]
[1717834561319,0.32843672,3703.0,3702.9,0.04126351]
[1717834561530,2.70062,3702.9,3702.5,0.3464506]
[1717834564495,2.70062,3702.9,3702.8,2.3202]
[1717834567634,2.70062,3702.9,3702.8,2.36153051]
[1717834569536,2.70062,3702.9,3702.8,0.04133051]
[1717834569701,2.70062,3702.9,3702.5,2.7433506]
[1717834569918,2.70062,3702.9,3702.7,0.3464506]
[1717834570321,2.70062,3702.9,3702.8,0.04133051]
[1717834570556,2.70062,3702.9,3702.4,0.3464506]
[1717834570728,2.70062,3702.9,3702.8,0.04133051]
[1717834571125,2.70085,3702.6,3702.2,0.3464506]
[1717834571327,2.70085,3702.6,3702.3,0.03990695]
[1717834571625,2.70085,3702.6,3702.0,2.7433506]
[1717834571829,3.07505,3702.6,3702.4,0.03990695]
[1717834572128,3.51265328,3702.6,3701.9,0.717]
[1717834572341,2.70108,3702.3,3701.8,0.3464506]
[1717834572538,2.70108,3702.3,3701.9,0.04026882]
[1717834580831,2.70108,3702.3,3702.1,0.3464506]
[1717834581032,2.70108,3702.3,3702.1,2.7908506]
[1717834581266,2.70108,3702.3,3702.2,0.04061739]
[1717834583233,2.70073,3702.7,3702.2,0.04061739]
[1717834583573,2.70073,3702.7,3702.6,0.3464506]
[1717834583932,2.70073,3702.7,3702.6,0.38774496]
[1717834584164,2.70044,3703.1,3702.6,0.38774496]
[1717834584463,2.70044,3703.1,3702.6,0.3464506]
[1717834584660,3.2844228,3703.1,3702.6,0.3464506]
[1717834585075,2.70044,3703.1,3702.6,0.3464506]
[1717834585973,3.28439627,3703.1,3702.6,0.3464506]
[1717834588985,2.70044,3703.1,3702.6,2.7908506]
[1717834589478,2.70044,3703.1,3702.7,0.04129436]
[1717834591990,2.70044,3703.1,3702.8,0.717]
[1717834592178,2.70044,3703.1,3702.9,2.4444]
[1717834592651,2.70044,3703.1,3703.0,0.04101952]
[1717834599044,3.28411627,3703.5,3703.0,0.04101952]
[1717834600134,3.93589677,3703.5,3703.0,0.04101952]
[1717834610995,2.70041,3703.2,3703.0,0.04101952]
[1717834614944,2.70041,3703.2,3702.6,2.7406506]
[1717834615153,3.28436627,3703.2,3702.7,0.04067762]
[1717834615324,2.70041,3703.2,3702.7,0.04067762]
[1717834615724,3.28436627,3703.2,3702.7,0.04067762]
[1717834616049,2.70041,3703.2,3702.7,0.04067762]
[1717834616554,3.28436627,3703.2,3702.7,0.04067762]
[1717834616741,2.70041,3703.2,3702.7,0.04067762]
[1717834616940,2.70052,3703.0,3702.7,0.04067762]
[1717834617138,2.70052,3703.0,3702.4,0.3464506]
[1717834617350,2.70052,3703.0,3702.5,0.04067762]
[1717834617574,3.28447627,3703.0,3702.5,0.04067762]
[1717834618643,3.28447627,3703.0,3702.2,1.0634506]
[1717834619120,3.28447627,3703.0,3702.3,0.04067762]
[1717834620523,3.89417303,3703.0,3702.3,0.04067762]
[1717834620954,2.70071,3702.8,3702.3,0.04067762]
[1717834621132,2.70071,3702.8,3702.2,1.0634506]
[1717834621436,2.70071,3702.8,3702.3,0.04105969]
[1717834621826,2.70071,3702.8,3702.2,1.0634506]
[1717834622030,2.70071,3702.8,3702.4,0.04105969]
[1717834622326,2.70071,3702.8,3702.2,0.3464506]
[1717834622527,2.70071,3702.8,3702.3,0.04105969]
[1717834622733,2.70071,3702.8,3702.2,0.3464506]
[1717834622933,2.70071,3702.8,3702.3,0.04105969]
[1717834623176,3.16040997,3702.8,3702.2,0.3464506]
[1717834623332,3.16040997,3702.8,3702.3,0.04105299]
[1717834623531,2.70093,3702.5,3702.2,0.3464506]
[1717834623861,2.70093,3702.5,3702.3,0.04105299]
[1717834624345,2.70093,3702.5,3702.4,0.04105299]
[1717834624547,2.70093,3702.5,3702.2,0.3464506]
[1717834624748,2.70093,3702.5,3702.3,0.04105299]
[1717834624944,2.70093,3702.5,3702.2,0.3464506]
[1717834625247,2.70093,3702.5,3702.3,0.04105299]
[1717834625671,2.70093,3702.5,3702.0,0.3464506]
[1717834625837,2.70093,3702.5,3702.4,0.04105299]
[1717834626042,2.70093,3702.5,3702.0,0.3464506]
[1717834626247,2.70093,3702.5,3702.4,0.04105299]
[1717834626453,2.70093,3702.5,3702.0,0.3464506]
[1717834626769,2.70093,3702.5,3702.1,0.04105299]
[1717834628574,2.70093,3702.5,3701.9,2.3979]
[1717834628872,2.70093,3702.5,3702.0,0.04105299]
[1717834629034,2.70116,3702.1,3702.0,0.04105299]
[1717834629436,2.70116,3702.1,3701.9,2.3979]
[1717834629631,2.70116,3702.1,3702.0,0.04105299]
[1717834630037,2.70116,3702.1,3701.8,0.3464506]
[1717834630290,2.70116,3702.1,3702.0,0.04105299]
[1717834630526,2.70116,3702.1,3701.8,0.3464506]
[1717834630734,2.70116,3702.1,3702.0,0.04105299]
[1717834631209,2.70116,3702.1,3702.0,0.04126082]
[1717834631415,2.70116,3702.1,3701.8,0.3464506]
[1717834631636,2.70116,3702.1,3702.0,0.04126082]
[1717834631833,2.70116,3702.1,3701.8,0.3464506]
[1717834632096,2.70116,3702.1,3702.0,0.04126082]
[1717834632316,2.70116,3702.1,3701.8,0.3464506]
[1717834632500,2.70116,3702.1,3702.0,0.04126082]
[1717834632988,2.70116,3702.1,3701.8,0.3464506]
[1717834633193,2.70116,3702.1,3701.9,0.04126082]
[1717834634442,2.70116,3702.1,3702.0,0.04126082]
[1717834634793,2.70116,3702.1,3701.6,2.7443506]
[1717834634997,2.70116,3702.1,3701.7,0.04126082]
[1717834637442,3.042976,3702.1,3701.7,0.04126082]
[1717834637625,2.70146,3701.8,3701.4,2.7443506]
[1717834639133,2.70146,3701.8,3701.6,0.3464506]
[1717834642614,2.70146,3701.8,3701.7,0.0402093]
[1717834644475,2.70146,3701.8,3701.4,2.7443506]
[1717834644654,2.70146,3701.8,3701.7,0.0402093]
[1717834644825,2.70146,3701.8,3701.4,3.4613506]
[1717834645020,2.70146,3701.8,3701.7,0.0402093]
[1717834645258,2.70146,3701.8,3701.4,3.4613506]
[1717834645415,2.70146,3701.8,3701.7,0.0402093]
[1717834645660,2.70146,3701.8,3701.4,3.4613506]
[1717834646344,2.70146,3701.8,3701.5,0.0402093]
[1717834646851,2.70146,3701.8,3701.6,0.0402093]
[1717834647239,2.70146,3701.8,3701.4,3.4613506]
[1717834647441,2.70146,3701.8,3701.7,0.0402093]
[1717834647763,2.70146,3701.8,3701.4,3.4613506]
[1717834648261,2.70146,3701.8,3701.5,0.0402093]
[1717834648622,2.70146,3701.8,3701.4,3.4613506]
[1717834648829,2.70146,3701.8,3701.5,0.0402093]
[1717834649390,2.70146,3701.8,3701.6,0.0402093]
[1717834649564,2.70146,3701.8,3701.4,3.4613506]
[1717834649761,2.70146,3701.8,3701.5,0.0402093]
[1717834649959,2.70146,3701.8,3701.4,2.7443506]
[1717834650346,2.70146,3701.8,3701.5,0.0402093]
[1717834650686,2.70146,3701.8,3701.4,2.7443506]
[1717834650884,2.70146,3701.8,3701.6,0.040216]
[1717834651068,2.70146,3701.8,3701.3,0.717]
[1717834651262,2.70146,3701.8,3701.7,0.040216]
[1717834651457,2.70146,3701.8,3701.3,0.717]
[1717834651458,2.971606,3701.8,3701.3,0.717]
[1717834651785,2.70146,3701.8,3701.3,0.717]
[1717834652089,2.70146,3701.8,3701.4,0.040216]
[1717834652600,2.70146,3701.8,3701.3,0.717]
[1717834652601,2.70146,3701.8,3701.5,0.040216]
[1717834652809,2.70146,3701.8,3701.2,0.3464506]
[1717834652964,2.70146,3701.8,3701.3,0.040216]
[1717834653174,2.70146,3701.8,3701.2,1.0634506]
[1717834653394,2.70146,3701.8,3701.3,0.040216]
[1717834653698,2.186222,3701.8,3701.2,1.0634506]
[1717834653893,2.194222,3701.8,3701.4,0.040216]
[1717834654207,2.194222,3701.8,3701.2,1.0634506]
[1717834654208,2.70157,3701.6,3701.5,0.040216]
[1717834654504,2.92938455,3701.6,3701.5,0.040216]
[1717834654804,2.92938455,3701.6,3701.2,0.3464506]
[1717834654988,2.92938455,3701.6,3701.3,0.040216]
[1717834655391,2.92938455,3701.6,3701.4,0.040216]
[1717834655600,2.92938455,3701.6,3701.2,0.3464506]
[1717834655766,2.92938455,3701.6,3701.3,0.040216]
[1717834655966,2.92938455,3701.6,3701.2,0.3464506]
[1717834656168,2.92938455,3701.6,3701.3,0.040216]
[1717834656370,2.92938455,3701.6,3701.2,0.3464506]
[1717834656570,2.92938455,3701.6,3701.3,0.040216]
[1717834656826,2.92938455,3701.6,3701.2,0.3464506]
[1717834657009,2.92938455,3701.6,3701.3,0.040216]
[1717834657209,2.92938455,3701.6,3701.2,0.3464506]
[1717834657505,2.92938455,3701.6,3701.3,0.040216]
[1717834657816,2.92938455,3701.6,3701.2,0.3464506]
[1717834657970,2.92938455,3701.6,3701.3,0.040216]
[1717834658171,2.92938455,3701.6,3701.2,0.3464506]
[1717834658413,2.92938455,3701.6,3701.3,0.040216]
[1717834658625,2.92938455,3701.6,3701.2,0.3464506]
[1717834658912,2.92938455,3701.6,3701.3,0.040216]
[1717834659221,2.92938455,3701.6,3701.2,0.3464506]
[1717834659529,2.92938455,3701.6,3701.3,0.040216]
[1717834660016,2.92938455,3701.6,3701.4,0.040216]
[1717834660315,2.92938455,3701.6,3701.2,0.3464506]
[1717834660523,3.51334082,3701.6,3701.2,0.3464506]
[1717834660691,3.51334082,3701.6,3701.3,0.040216]
[1717834661189,2.92938455,3701.6,3701.4,0.040216]
[1717834661519,3.51334082,3701.6,3701.0,0.717]
[1717834661685,2.92938455,3701.6,3701.5,0.040216]
[1717834661878,3.51334082,3701.6,3701.1,2.4328]
[1717834662078,2.92938455,3701.6,3701.5,0.040216]
[1717834662298,2.92938455,3701.6,3701.2,1.0634506]
[1717834662482,2.92938455,3701.6,3701.5,0.04041047]
[1717834662682,2.92938455,3701.6,3701.3,2.4328]
[1717834662992,2.92938455,3701.6,3701.4,0.04034342]
[1717834663220,2.92938455,3701.6,3701.3,2.4328]
[1717834663379,2.92938455,3701.6,3701.4,0.04034342]
[1717834663578,2.92938455,3701.6,3701.3,2.4328]
[1717834663871,2.92938455,3701.6,3701.4,0.04018921]
[1717834664316,2.92938455,3701.6,3701.3,2.4328]
[1717834664518,2.92938455,3701.6,3701.5,0.04018921]
[1717834665110,2.92938455,3701.6,3701.3,2.4328]
[1717834665311,2.92938455,3701.6,3701.5,0.04018921]
[1717834665517,2.92938455,3701.6,3701.3,3.1498]
[1717834665717,2.92938455,3701.6,3701.5,0.04018921]
[1717834666228,2.92938455,3701.6,3701.3,3.1498]
[1717834666409,2.92938455,3701.6,3701.4,0.04018921]
[1717834666718,2.92938455,3701.6,3701.3,3.1498]
[1717834667217,2.92938455,3701.6,3701.4,0.04029648]
[1717834667421,2.92938455,3701.6,3701.3,3.1498]
[1717834667622,2.92938455,3701.6,3701.4,0.04029648]
[1717834667939,2.92938455,3701.6,3701.3,3.1498]
[1717834668137,2.92938455,3701.6,3701.5,0.04029648]
[1717834668340,2.92938455,3701.6,3701.3,3.1498]
[1717834668521,2.92938455,3701.6,3701.5,0.04029648]
[1717834669153,2.92938455,3701.6,3701.3,3.1498]
[1717834669306,2.92938455,3701.6,3701.5,0.04029648]
[1717834669507,2.92938455,3701.6,3701.3,3.1498]
[1717834669730,2.92938455,3701.6,3701.5,0.04029648]
[1717834669934,2.92938455,3701.6,3701.3,3.1498]
[1717834670138,2.92938455,3701.6,3701.5,0.04029648]
[1717834670321,2.92938455,3701.6,3701.3,3.1498]
[1717834670532,2.92938455,3701.6,3701.5,0.04029648]
[1717834671047,2.92938455,3701.6,3701.3,3.1498]
[1717834671365,2.92938455,3701.6,3701.5,0.04029648]
[1717834671560,2.92938455,3701.6,3701.3,3.1498]
[1717834671759,2.92938455,3701.6,3701.5,0.04029648]
[1717834671925,2.92938455,3701.6,3701.3,3.1498]
[1717834672127,2.92938455,3701.6,3701.5,0.04029648]
[1717834672329,2.92938455,3701.6,3701.3,3.1498]
[1717834672823,2.92938455,3701.6,3701.4,0.04029648]
[1717834673027,2.92938455,3701.6,3701.3,3.1498]
[1717834673216,2.92938455,3701.6,3701.4,0.04029648]
[1717834673416,2.92938455,3701.6,3701.3,3.1498]
[1717834673665,0.22781455,3701.6,3701.4,0.04012885]
[1717834674021,0.22781455,3701.6,3701.3,3.1498]
[1717834674242,0.22781455,3701.6,3701.4,0.04012885]
[1717834674462,0.22781455,3701.6,3701.3,3.1498]
[1717834674662,0.22781455,3701.6,3701.5,0.04012885]
[1717834674826,0.22781455,3701.6,3701.3,3.1498]
[1717834675027,0.22781455,3701.6,3701.4,0.04012885]
[1717834675261,0.22781455,3701.6,3701.3,3.1498]
[1717834675487,0.22781455,3701.6,3701.5,0.04012885]
[1717834675690,0.22781455,3701.6,3701.5,0.3464506]
[1717834675893,0.22781455,3701.6,3701.5,3.53637945]
[1717834680601,0.22781455,3701.6,3701.5,2.81937945]
[1717834680801,0.22781455,3701.6,3701.5,3.53637945]
[1717834684586,0.22781455,3701.6,3701.5,3.56660845]
[1717834684950,0.22781455,3701.6,3701.5,3.54060845]
[1717834689799,0.20181455,3701.6,3701.5,3.54060845]
[1717834692530,0.20181455,3701.6,3701.5,2.82360845]
[1717834692689,0.20181455,3701.6,3701.5,3.54060845]
[1717834705872,0.20181455,3701.6,3701.5,0.39080845]
[1717834706186,0.20181455,3701.6,3701.5,0.07035785]
[1717834706613,0.53035201,3701.6,3701.5,0.07035785]
[1717834706774,0.20181455,3701.6,3701.5,0.07035785]
[1717834707418,0.20181455,3701.6,3701.5,0.030229]
[1717834707985,0.20181455,3701.6,3701.5,0.07012989]
[1717834708189,0.20181455,3701.6,3701.5,0.030229]
[1717834708390,0.20181455,3701.6,3701.5,0.07012989]
[1717834708586,0.20181455,3701.6,3701.5,0.030229]
[1717834708783,0.20181455,3701.6,3701.5,0.07012989]
[1717834708989,0.20181455,3701.6,3701.5,0.030229]
[1717834709202,0.20181455,3701.6,3701.5,0.07012989]
[1717834709410,0.20181455,3701.6,3701.5,0.030229]
[1717834709600,0.20181455,3701.6,3701.5,0.07012989]
[1717834709820,0.20181455,3701.6,3701.5,0.030229]
[1717834710003,0.20181455,3701.6,3701.5,0.07012989]